[Event "*** Titled Tuesday Blitz"]
[Site "Chess.com"]
[Date "2021.03.16"]
[Round "3"]
[White "guillembaches"]
[Black "sokidze"]
[Result "1/2-1/2"]
[WhiteElo "2480"]
[BlackElo "2704"]
[TimeControl "180+1"]
[EndTime "10:28:49 PDT"]
[Termination "Game drawn by repetition"]

1. e4 {[%clk 0:03:00.9]} 1... c5 {[%clk 0:03:00]} 2. Nf3 {[%clk 0:03:01.1]} 2...
Nc6 {[%clk 0:02:58.8]} 3. d4 {[%clk 0:03:01.2]} 3... cxd4 {[%clk 0:02:58.9]} 4.
Nxd4 {[%clk 0:03:02.1]} 4... g6 {[%clk 0:02:59.2]} 5. c4 {[%clk 0:03:01.7]} 5...
Nf6 {[%clk 0:02:59.2]} 6. Nc3 {[%clk 0:03:00.8]} 6... d6 {[%clk 0:02:59.7]} 7.
Nc2 {[%clk 0:02:59.9]} 7... Bg7 {[%clk 0:02:58.4]} 8. Be2 {[%clk 0:03:00.2]}
8... O-O {[%clk 0:02:54.9]} 9. Be3 {[%clk 0:03:00]} 9... Nd7 {[%clk 0:02:48.7]}
10. Qd2 {[%clk 0:02:59.2]} 10... Nc5 {[%clk 0:02:34.7]} 11. f3 {[%clk
0:02:58.6]} 11... a5 {[%clk 0:02:29.5]} 12. O-O {[%clk 0:02:57]} 12... b6 {[%clk
0:02:25.6]} 13. Rfc1 {[%clk 0:02:43.9]} 13... Ba6 {[%clk 0:02:20.4]} 14. b3
{[%clk 0:02:39.3]} 14... Rc8 {[%clk 0:02:10.8]} 15. Rab1 {[%clk 0:02:39.2]}
15... e6 {[%clk 0:01:33.5]} 16. Rd1 {[%clk 0:02:32.3]} 16... Qf6 {[%clk
0:01:31.2]} 17. Nb5 {[%clk 0:02:19.7]} 17... Bxb5 {[%clk 0:01:19.6]} 18. cxb5
{[%clk 0:02:20.6]} 18... Ne5 {[%clk 0:01:19.9]} 19. Bg5 {[%clk 0:02:06.3]} 19...
Nxb3 {[%clk 0:01:07.3]} 20. axb3 {[%clk 0:01:56.3]} 20... Rxc2 {[%clk
0:01:04.4]} 21. Bxf6 {[%clk 0:01:52.9]} 21... Rxd2 {[%clk 0:01:04.6]} 22. Rxd2
{[%clk 0:01:50.9]} 22... Bxf6 {[%clk 0:01:04.9]} 23. Rxd6 {[%clk 0:01:50.8]}
23... Be7 {[%clk 0:01:04.3]} 24. Rd2 {[%clk 0:01:38.8]} 24... Bb4 {[%clk
0:01:04]} 25. Rc2 {[%clk 0:01:34.5]} 25... Bc5+ {[%clk 0:00:59.1]} 26. Kf1
{[%clk 0:01:33.1]} 26... g5 {[%clk 0:00:56.4]} 27. Rd1 {[%clk 0:01:29.8]} 27...
Kg7 {[%clk 0:00:56.3]} 28. Rcd2 {[%clk 0:01:25.6]} 28... f5 {[%clk 0:00:40.4]}
29. exf5 {[%clk 0:01:20]} 29... Rxf5 {[%clk 0:00:40.4]} 30. Rd8 {[%clk
0:01:11.5]} 30... h5 {[%clk 0:00:30.8]} 31. Bd3 {[%clk 0:01:03.8]} 31... Rf7
{[%clk 0:00:26]} 32. Be4 {[%clk 0:01:02.3]} 32... h4 {[%clk 0:00:19.8]} 33. Ke2
{[%clk 0:01:00.7]} 33... Kf6 {[%clk 0:00:19.9]} 34. Rh8 {[%clk 0:00:52.7]} 34...
Bf8 {[%clk 0:00:13.9]} 35. Rd8 {[%clk 0:00:44.9]} 35... Bg7 {[%clk 0:00:12.2]}
36. Rhe8 {[%clk 0:00:43.3]} 36... Rc7 {[%clk 0:00:09.4]} 37. Rd6 {[%clk
0:00:39]} 37... Kf7 {[%clk 0:00:06.5]} 38. Rexe6 {[%clk 0:00:37.6]} 38... Rc3
{[%clk 0:00:02.9]} 39. Rxb6 {[%clk 0:00:34.7]} 39... Rxb3 {[%clk 0:00:03.4]} 40.
Rxe5 {[%clk 0:00:34.9]} 40... Rb2+ {[%clk 0:00:03.2]} 41. Bc2 {[%clk 0:00:27.9]}
41... Bxe5 {[%clk 0:00:04.1]} 42. Kd3 {[%clk 0:00:27]} 42... a4 {[%clk
0:00:04.1]} 43. Ra6 {[%clk 0:00:26.8]} 43... Rxb5 {[%clk 0:00:02.6]} 44. Rxa4
{[%clk 0:00:26.7]} 44... Kf6 {[%clk 0:00:02.7]} 45. Ra6+ {[%clk 0:00:26.4]}
45... Kg7 {[%clk 0:00:03.3]} 46. h3 {[%clk 0:00:20.1]} 46... Bf6 {[%clk
0:00:03.3]} 47. Ra7+ {[%clk 0:00:19.5]} 47... Kh6 {[%clk 0:00:03.1]} 48. Ke2
{[%clk 0:00:18.7]} 48... Re5+ {[%clk 0:00:03.2]} 49. Kf1 {[%clk 0:00:18.4]}
49... Re7 {[%clk 0:00:04.1]} 50. Rxe7 {[%clk 0:00:17.6]} 50... Bxe7 {[%clk
0:00:04.4]} 51. Be4 {[%clk 0:00:18.2]} 51... Kg7 {[%clk 0:00:05.3]} 52. Kg1
{[%clk 0:00:18.6]} 52... Bd6 {[%clk 0:00:05.7]} 53. Kh1 {[%clk 0:00:19.2]} 53...
Bg3 {[%clk 0:00:06.6]} 54. Bf5 {[%clk 0:00:19.6]} 54... Kf6 {[%clk 0:00:07.5]}
55. Bg4 {[%clk 0:00:20.2]} 55... Ke5 {[%clk 0:00:08.4]} 56. Bh5 {[%clk
0:00:20.7]} 56... Kf4 {[%clk 0:00:09.3]} 57. Bg4 {[%clk 0:00:21.1]} 57... Ke3
{[%clk 0:00:09.6]} 58. Bh5 {[%clk 0:00:21.6]} 58... Kf2 {[%clk 0:00:10]} 59. Bg4
{[%clk 0:00:22.1]} 59... Bf4 {[%clk 0:00:10.4]} 60. Bh5 {[%clk 0:00:22.5]} 60...
Bg3 {[%clk 0:00:11]} 61. Bg4 {[%clk 0:00:22.9]} 61... Kf1 {[%clk 0:00:11.1]} 62.
Bh5 {[%clk 0:00:23.3]} 62... Kf2 {[%clk 0:00:11.7]} 1/2-1/2

[Event "*** Titled Tuesday Blitz"]
[Site "Chess.com"]
[Date "2021.03.16"]
[Round "3"]
[White "Jumbo"]
[Black "Aygehovit1992"]
[Result "1/2-1/2"]
[WhiteElo "2814"]
[BlackElo "2637"]
[TimeControl "180+1"]
[EndTime "10:28:52 PDT"]
[Termination "Game drawn by repetition"]

1. d4 {[%clk 0:03:00.9]} 1... Nf6 {[%clk 0:02:59.6]} 2. c4 {[%clk 0:02:59.4]}
2... g6 {[%clk 0:03:00.2]} 3. g3 {[%clk 0:02:59.2]} 3... Bg7 {[%clk 0:02:59.5]}
4. Bg2 {[%clk 0:02:59.6]} 4... O-O {[%clk 0:02:59.2]} 5. Nc3 {[%clk 0:02:57.3]}
5... d6 {[%clk 0:02:59.3]} 6. Nf3 {[%clk 0:02:57.1]} 6... Nc6 {[%clk 0:02:58.8]}
7. O-O {[%clk 0:02:56.1]} 7... a6 {[%clk 0:02:59.4]} 8. Bf4 {[%clk 0:02:55]}
8... Rb8 {[%clk 0:02:57.9]} 9. Rc1 {[%clk 0:02:55]} 9... b5 {[%clk 0:02:57.4]}
10. Nd5 {[%clk 0:02:52.7]} 10... b4 {[%clk 0:02:26.9]} 11. Nxf6+ {[%clk
0:02:22.1]} 11... Bxf6 {[%clk 0:02:27.8]} 12. d5 {[%clk 0:02:22.3]} 12... Na5
{[%clk 0:02:21.4]} 13. Qd2 {[%clk 0:02:20.8]} 13... Bd7 {[%clk 0:02:18.6]} 14.
c5 {[%clk 0:02:18.2]} 14... Bb5 {[%clk 0:02:07.1]} 15. b3 {[%clk 0:02:11.3]}
15... Nb7 {[%clk 0:02:02.6]} 16. cxd6 {[%clk 0:02:02.7]} 16... cxd6 {[%clk
0:02:03.5]} 17. Nd4 {[%clk 0:01:59.1]} 17... Bxd4 {[%clk 0:02:03.5]} 18. Qxd4
{[%clk 0:01:58.7]} 18... f6 {[%clk 0:01:59.5]} 19. Rc2 {[%clk 0:01:55.3]} 19...
a5 {[%clk 0:01:58.7]} 20. Rfc1 {[%clk 0:01:53.9]} 20... Nc5 {[%clk 0:01:51.5]}
21. h4 {[%clk 0:01:24.5]} 21... Rb6 {[%clk 0:01:34]} 22. Be3 {[%clk 0:01:06]}
22... Qd7 {[%clk 0:01:23.7]} 23. Qd2 {[%clk 0:01:03.8]} 23... Qg4 {[%clk
0:01:13.1]} 24. Bf3 {[%clk 0:01:02.5]} 24... Qf5 {[%clk 0:01:11.1]} 25. Bxc5
{[%clk 0:01:00.8]} 25... dxc5 {[%clk 0:01:12]} 26. Rxc5 {[%clk 0:01:01.2]} 26...
Rd8 {[%clk 0:01:02.3]} 27. Qe3 {[%clk 0:00:59.8]} 27... Qe5 {[%clk 0:00:58.3]}
28. Qxe5 {[%clk 0:00:54.5]} 28... fxe5 {[%clk 0:00:59.2]} 29. Kf1 {[%clk
0:00:43.3]} 29... Kg7 {[%clk 0:00:58.2]} 30. Ke1 {[%clk 0:00:41.6]} 30... Kf6
{[%clk 0:00:57.7]} 31. Be4 {[%clk 0:00:37.5]} 31... a4 {[%clk 0:00:56.6]} 32.
Kd2 {[%clk 0:00:28.2]} 32... axb3 {[%clk 0:00:52.7]} 33. axb3 {[%clk 0:00:29.1]}
33... Ra8 {[%clk 0:00:52.7]} 34. Ke3 {[%clk 0:00:15]} 34... Ra3 {[%clk
0:00:43.2]} 35. Rb1 {[%clk 0:00:14.9]} 35... Ba4 {[%clk 0:00:40.3]} 36. Bc2
{[%clk 0:00:13.9]} 36... Rb5 {[%clk 0:00:36.1]} 37. Rc6+ {[%clk 0:00:11.7]}
37... Kf7 {[%clk 0:00:35.2]} 38. Ra6 {[%clk 0:00:04.6]} 38... Bxb3 {[%clk
0:00:26.2]} 39. Rxa3 {[%clk 0:00:04.6]} 39... Bxc2 {[%clk 0:00:26.1]} 40. Rb2
{[%clk 0:00:04.2]} 40... b3 {[%clk 0:00:11.4]} 41. Ra4 {[%clk 0:00:04.1]} 41...
Rxd5 {[%clk 0:00:11.4]} 42. Rc4 {[%clk 0:00:03.4]} 42... Kf6 {[%clk 0:00:10]}
43. Rc6+ {[%clk 0:00:03.5]} 43... e6 {[%clk 0:00:09.5]} 44. f3 {[%clk 0:00:04]}
44... h5 {[%clk 0:00:09.2]} 45. Rc4 {[%clk 0:00:03.9]} 45... Ra5 {[%clk
0:00:08]} 46. Rc3 {[%clk 0:00:03.5]} 46... Ra1 {[%clk 0:00:07.3]} 47. Kd2 {[%clk
0:00:03.3]} 47... Rd1+ {[%clk 0:00:06.9]} 48. Ke3 {[%clk 0:00:03.3]} 48... Ra1
{[%clk 0:00:07.8]} 49. Kf2 {[%clk 0:00:03.5]} 49... Rd1 {[%clk 0:00:07.5]} 50.
Ke3 {[%clk 0:00:03.2]} 50... Ra1 {[%clk 0:00:07.8]} 1/2-1/2

[Event "*** Titled Tuesday Blitz"]
[Site "Chess.com"]
[Date "2021.03.16"]
[Round "3"]
[White "Soltan49"]
[Black "karinachess1"]
[Result "1/2-1/2"]
[WhiteElo "2217"]
[BlackElo "2512"]
[TimeControl "180+1"]
[EndTime "10:28:54 PDT"]
[Termination "Game drawn by repetition"]

1. d4 {[%clk 0:02:59.6]} 1... Nf6 {[%clk 0:02:59.4]} 2. Nf3 {[%clk 0:02:59.9]}
2... e6 {[%clk 0:02:58.9]} 3. Bf4 {[%clk 0:02:57.7]} 3... d5 {[%clk 0:02:57.6]}
4. e3 {[%clk 0:02:58.2]} 4... Bd6 {[%clk 0:02:56.5]} 5. Bg3 {[%clk 0:02:50.1]}
5... O-O {[%clk 0:02:54.8]} 6. Bd3 {[%clk 0:02:48.1]} 6... c5 {[%clk 0:02:54.3]}
7. c3 {[%clk 0:02:47.8]} 7... Qc7 {[%clk 0:02:53.9]} 8. Nbd2 {[%clk 0:02:45.7]}
8... Nbd7 {[%clk 0:02:53.6]} 9. e4 {[%clk 0:02:21.9]} 9... dxe4 {[%clk
0:02:45.3]} 10. Nxe4 {[%clk 0:02:22.8]} 10... Nxe4 {[%clk 0:02:45.3]} 11. Bxe4
{[%clk 0:02:22.5]} 11... Nf6 {[%clk 0:02:44.3]} 12. Bd3 {[%clk 0:02:18.2]} 12...
b6 {[%clk 0:02:33.3]} 13. O-O {[%clk 0:02:16]} 13... Bxg3 {[%clk 0:02:32.3]} 14.
hxg3 {[%clk 0:02:16.1]} 14... Bb7 {[%clk 0:02:30.3]} 15. Qe2 {[%clk 0:02:15.7]}
15... Rad8 {[%clk 0:02:25.1]} 16. Rad1 {[%clk 0:01:52.5]} 16... Rfe8 {[%clk
0:02:21]} 17. dxc5 {[%clk 0:01:41.2]} 17... Qxc5 {[%clk 0:02:17.5]} 18. Qe5
{[%clk 0:01:35.8]} 18... Rd5 {[%clk 0:01:50.4]} 19. Qe2 {[%clk 0:01:18.8]} 19...
Red8 {[%clk 0:01:42.7]} 20. Bc2 {[%clk 0:01:17.3]} 20... h6 {[%clk 0:01:19.4]}
21. Nd4 {[%clk 0:01:04.9]} 21... a6 {[%clk 0:00:54.2]} 22. Rfe1 {[%clk
0:00:33.8]} 22... R5d6 {[%clk 0:00:51.9]} 23. Nf3 {[%clk 0:00:28.6]} 23... Ng4
{[%clk 0:00:37.6]} 24. Rxd6 {[%clk 0:00:26.4]} 24... Rxd6 {[%clk 0:00:38.5]} 25.
Nd4 {[%clk 0:00:26.5]} 25... Nf6 {[%clk 0:00:37.7]} 26. Rd1 {[%clk 0:00:18.9]}
26... g6 {[%clk 0:00:35.7]} 27. Nf3 {[%clk 0:00:13]} 27... Kg7 {[%clk
0:00:33.9]} 28. Rxd6 {[%clk 0:00:12.2]} 28... Qxd6 {[%clk 0:00:34.8]} 29. Qd3
{[%clk 0:00:12]} 29... Qc5 {[%clk 0:00:31.1]} 30. Nd4 {[%clk 0:00:06.5]} 30...
e5 {[%clk 0:00:27.9]} 31. Nb3 {[%clk 0:00:04.6]} 31... Qc7 {[%clk 0:00:27.9]}
32. Nd2 {[%clk 0:00:03.1]} 32... b5 {[%clk 0:00:24.8]} 33. Qe2 {[%clk
0:00:03.3]} 33... Qd6 {[%clk 0:00:16.6]} 34. Ne4 {[%clk 0:00:03.6]} 34... Nxe4
{[%clk 0:00:16.8]} 35. Bxe4 {[%clk 0:00:04.5]} 35... Bc8 {[%clk 0:00:17.2]} 36.
Bc2 {[%clk 0:00:04.4]} 36... Be6 {[%clk 0:00:17.3]} 37. Bb3 {[%clk 0:00:04.7]}
37... Bxb3 {[%clk 0:00:15.8]} 38. axb3 {[%clk 0:00:05.6]} 38... Qd5 {[%clk
0:00:15.4]} 39. Qe3 {[%clk 0:00:05.6]} 39... h5 {[%clk 0:00:11]} 40. Kh2 {[%clk
0:00:05.9]} 40... Qd6 {[%clk 0:00:10.3]} 41. Qe2 {[%clk 0:00:05.6]} 41... f6
{[%clk 0:00:09]} 42. Kg1 {[%clk 0:00:05.9]} 42... Qd5 {[%clk 0:00:09]} 43. Qe3
{[%clk 0:00:05.7]} 43... Qxb3 {[%clk 0:00:07.5]} 44. Qa7+ {[%clk 0:00:05.9]}
44... Kh6 {[%clk 0:00:08]} 45. Qe3+ {[%clk 0:00:06.1]} 45... g5 {[%clk
0:00:07.7]} 46. Qf3 {[%clk 0:00:06.5]} 46... Kg6 {[%clk 0:00:07.7]} 47. Qe4+
{[%clk 0:00:06.5]} 47... Kg7 {[%clk 0:00:07.3]} 48. Qb7+ {[%clk 0:00:06]} 48...
Kg6 {[%clk 0:00:07]} 49. Qe4+ {[%clk 0:00:06]} 49... Kf7 {[%clk 0:00:07.1]} 50.
Qb7+ {[%clk 0:00:06.1]} 50... Kg6 {[%clk 0:00:06.1]} 51. Qe4+ {[%clk 0:00:06.7]}
1/2-1/2

[Event "*** Titled Tuesday Blitz"]
[Site "Chess.com"]
[Date "2021.03.16"]
[Round "3"]
[White "Fischerev7"]
[Black "mirochka"]
[Result "0-1"]
[WhiteElo "2389"]
[BlackElo "2245"]
[TimeControl "180+1"]
[EndTime "10:28:55 PDT"]
[Termination "mirochka won by resignation"]

1. e4 {[%clk 0:02:56.5]} 1... c5 {[%clk 0:02:59]} 2. Nf3 {[%clk 0:02:52.9]} 2...
Nc6 {[%clk 0:02:57.2]} 3. d4 {[%clk 0:02:51.5]} 3... cxd4 {[%clk 0:02:58.1]} 4.
Nxd4 {[%clk 0:02:52.2]} 4... e5 {[%clk 0:02:58]} 5. Nf3 {[%clk 0:02:50.9]} 5...
Nf6 {[%clk 0:02:55.5]} 6. Bc4 {[%clk 0:02:45.5]} 6... Bb4+ {[%clk 0:02:42.4]} 7.
c3 {[%clk 0:02:43.6]} 7... Bc5 {[%clk 0:02:34.9]} 8. O-O {[%clk 0:02:40]} 8...
O-O {[%clk 0:02:33]} 9. Bg5 {[%clk 0:02:36.2]} 9... h6 {[%clk 0:02:25.8]} 10.
Bh4 {[%clk 0:02:24.1]} 10... Be7 {[%clk 0:02:25.5]} 11. Bxf6 {[%clk 0:02:23.2]}
11... Bxf6 {[%clk 0:02:25]} 12. Na3 {[%clk 0:02:18.4]} 12... a6 {[%clk
0:02:20.9]} 13. Nc2 {[%clk 0:02:18]} 13... b5 {[%clk 0:02:08.9]} 14. Bd5 {[%clk
0:02:15.4]} 14... Rb8 {[%clk 0:02:07.4]} 15. Ne3 {[%clk 0:02:13.4]} 15... Ne7
{[%clk 0:02:06.8]} 16. Bb3 {[%clk 0:02:09.4]} 16... Bb7 {[%clk 0:02:05.4]} 17.
Qd3 {[%clk 0:02:07.2]} 17... Qc7 {[%clk 0:01:51.2]} 18. Rad1 {[%clk 0:02:04.9]}
18... Rfd8 {[%clk 0:01:50.6]} 19. Ng4 {[%clk 0:01:53.6]} 19... d5 {[%clk
0:01:41]} 20. Nxf6+ {[%clk 0:01:50.6]} 20... gxf6 {[%clk 0:01:41.9]} 21. exd5
{[%clk 0:01:41.6]} 21... Nxd5 {[%clk 0:01:38.9]} 22. Qf5 {[%clk 0:01:35.4]}
22... Kg7 {[%clk 0:01:35]} 23. Bxd5 {[%clk 0:01:13.8]} 23... Bxd5 {[%clk
0:01:29.6]} 24. Nh4 {[%clk 0:01:12.2]} 24... Be6 {[%clk 0:01:26.8]} 25. Qh5
{[%clk 0:01:05.1]} 25... Rxd1 {[%clk 0:01:16.4]} 26. Rxd1 {[%clk 0:01:06]} 26...
Rd8 {[%clk 0:01:16.3]} 27. Rxd8 {[%clk 0:00:56.4]} 27... Qxd8 {[%clk 0:01:17.2]}
28. h3 {[%clk 0:00:57.1]} 28... Qd2 {[%clk 0:01:11.8]} 29. Nf5+ {[%clk
0:00:35.6]} 29... Bxf5 {[%clk 0:01:09.2]} 30. Qxf5 {[%clk 0:00:36.5]} 30... Qxb2
{[%clk 0:01:05.5]} 31. Qg4+ {[%clk 0:00:36.8]} 31... Kf8 {[%clk 0:01:02.7]} 32.
Qc8+ {[%clk 0:00:35.2]} 32... Kg7 {[%clk 0:01:02.5]} 33. Qxa6 {[%clk 0:00:35]}
33... Qxc3 {[%clk 0:00:49.9]} 34. Qxb5 {[%clk 0:00:32.8]} 34... Qa1+ {[%clk
0:00:49.8]} 35. Kh2 {[%clk 0:00:32.1]} 35... Qxa2 {[%clk 0:00:50.4]} 36. Qb6
{[%clk 0:00:29.1]} 36... Qd2 {[%clk 0:00:47.9]} 37. Qc5 {[%clk 0:00:24.8]} 37...
Qd4 {[%clk 0:00:44.1]} 38. Qc2 {[%clk 0:00:23.3]} 38... Qf4+ {[%clk 0:00:37.9]}
39. g3 {[%clk 0:00:23.2]} 39... Qf3 {[%clk 0:00:37.4]} 40. Qd2 {[%clk 0:00:23]}
40... f5 {[%clk 0:00:36.8]} 41. Kg1 {[%clk 0:00:23]} 41... f4 {[%clk 0:00:30.2]}
42. Qb2 {[%clk 0:00:18.2]} 42... f6 {[%clk 0:00:22.9]} 43. gxf4 {[%clk
0:00:17.3]} 43... Qxf4 {[%clk 0:00:21.7]} 44. Qb7+ {[%clk 0:00:17.7]} 44... Kg6
{[%clk 0:00:21.4]} 45. Qb1+ {[%clk 0:00:17.7]} 45... Kh5 {[%clk 0:00:20.1]} 46.
Qd1+ {[%clk 0:00:17.2]} 46... Kh4 {[%clk 0:00:20]} 47. Kg2 {[%clk 0:00:17.8]}
47... Qe4+ {[%clk 0:00:19.3]} 48. Kh2 {[%clk 0:00:16.4]} 48... Qf4+ {[%clk
0:00:19.3]} 49. Kg2 {[%clk 0:00:16.9]} 49... e4 {[%clk 0:00:19.8]} 50. Qe2
{[%clk 0:00:15]} 50... Qf3+ {[%clk 0:00:19.6]} 51. Qxf3 {[%clk 0:00:15.1]} 51...
exf3+ {[%clk 0:00:20.2]} 52. Kxf3 {[%clk 0:00:16]} 52... Kxh3 {[%clk 0:00:20.7]}
53. Kf4 {[%clk 0:00:16.5]} 53... Kg2 {[%clk 0:00:21.1]} 54. f3 {[%clk
0:00:16.9]} 54... h5 {[%clk 0:00:21.1]} 55. Kf5 {[%clk 0:00:11.4]} 55... h4
{[%clk 0:00:22]} 56. Kxf6 {[%clk 0:00:10.4]} 56... Kxf3 {[%clk 0:00:21.2]} 57.
Ke5 {[%clk 0:00:09.4]} 57... h3 {[%clk 0:00:22.1]} 0-1

[Event "*** Titled Tuesday Blitz"]
[Site "Chess.com"]
[Date "2021.03.16"]
[Round "3"]
[White "whogeeyao"]
[Black "Maddie"]
[Result "1-0"]
[WhiteElo "2363"]
[BlackElo "2068"]
[TimeControl "180+1"]
[EndTime "10:28:58 PDT"]
[Termination "whogeeyao won by resignation"]

1. e4 {[%clk 0:02:59.7]} 1... c5 {[%clk 0:02:47.9]} 2. Nf3 {[%clk 0:03:00.3]}
2... Nc6 {[%clk 0:02:45.9]} 3. d4 {[%clk 0:03:00.8]} 3... cxd4 {[%clk
0:02:40.4]} 4. Nxd4 {[%clk 0:03:01.7]} 4... g6 {[%clk 0:02:38.4]} 5. Nxc6 {[%clk
0:03:01.5]} 5... bxc6 {[%clk 0:02:34.4]} 6. Qd4 {[%clk 0:03:01.6]} 6... Nf6
{[%clk 0:02:29.1]} 7. e5 {[%clk 0:03:01.9]} 7... Nh5 {[%clk 0:02:21.9]} 8. Bc4
{[%clk 0:02:40]} 8... Bg7 {[%clk 0:01:31]} 9. g4 {[%clk 0:02:39.4]} 9... Qa5+
{[%clk 0:01:23.8]} 10. Bd2 {[%clk 0:02:08.5]} 10... Qxe5+ {[%clk 0:01:19.1]} 11.
Qxe5 {[%clk 0:02:05.3]} 11... Bxe5 {[%clk 0:01:20]} 12. gxh5 {[%clk 0:02:05.5]}
12... Bxb2 {[%clk 0:01:19.8]} 13. Bc3 {[%clk 0:01:45.6]} 13... Bxa1 {[%clk
0:01:17]} 14. Bxa1 {[%clk 0:01:46.5]} 14... O-O {[%clk 0:01:14.6]} 15. Rg1
{[%clk 0:01:43.5]} 15... d5 {[%clk 0:01:11.6]} 16. Bd3 {[%clk 0:01:39.9]} 16...
Rb8 {[%clk 0:01:02.1]} 17. Nd2 {[%clk 0:01:37.8]} 17... c5 {[%clk 0:00:52.7]}
18. hxg6 {[%clk 0:01:35.3]} 18... hxg6 {[%clk 0:00:47.7]} 19. Be5 {[%clk
0:01:31.6]} 19... Rb6 {[%clk 0:00:42.9]} 20. c4 {[%clk 0:01:21.7]} 20... d4
{[%clk 0:00:38.6]} 21. Kd1 {[%clk 0:01:11.2]} 21... Rb2 {[%clk 0:00:20.9]} 22.
Bb1 {[%clk 0:00:55.6]} 22... Be6 {[%clk 0:00:18.3]} 23. Kc1 {[%clk 0:00:54]}
23... Rb6 {[%clk 0:00:16.9]} 24. h4 {[%clk 0:00:46.2]} 24... f6 {[%clk
0:00:02.3]} 25. Bc7 {[%clk 0:00:15.7]} 25... Rb7 {[%clk 0:00:02.6]} 26. Bf4
{[%clk 0:00:13.9]} 26... g5 {[%clk 0:00:02.3]} 27. hxg5 {[%clk 0:00:13.2]} 27...
fxg5 {[%clk 0:00:03.2]} 28. Rxg5+ {[%clk 0:00:09.3]} 28... Kf7 {[%clk
0:00:04.1]} 29. Be5 {[%clk 0:00:09.5]} 29... Ke8 {[%clk 0:00:05]} 30. Be4 {[%clk
0:00:08.3]} 30... Kd7 {[%clk 0:00:05.9]} 31. Bxb7 {[%clk 0:00:08.2]} 31... Rxf2
{[%clk 0:00:05.7]} 32. Bd5 {[%clk 0:00:08.2]} 32... Re2 {[%clk 0:00:06]} 33. Bg7
{[%clk 0:00:07]} 33... Bxd5 {[%clk 0:00:06.4]} 34. Rxd5+ {[%clk 0:00:07.6]}
34... Kc6 {[%clk 0:00:06.5]} 35. Bf8 {[%clk 0:00:07.4]} 35... e6 {[%clk
0:00:07.4]} 36. Rd6+ {[%clk 0:00:07.9]} 36... Kc7 {[%clk 0:00:06.7]} 37. Nb3
{[%clk 0:00:08.1]} 37... e5 {[%clk 0:00:07]} 38. Kb1 {[%clk 0:00:08.1]} 38...
Rf2 {[%clk 0:00:06.5]} 39. Nxc5 {[%clk 0:00:08.2]} 39... Rxf8 {[%clk 0:00:07.2]}
40. Ne6+ {[%clk 0:00:09]} 40... Kxd6 {[%clk 0:00:07.4]} 41. Nxf8 {[%clk
0:00:09.9]} 41... e4 {[%clk 0:00:08]} 42. Kb2 {[%clk 0:00:09.8]} 42... Ke5
{[%clk 0:00:08.9]} 43. Kb3 {[%clk 0:00:09.8]} 43... e3 {[%clk 0:00:09.8]} 44.
Ng6+ {[%clk 0:00:09.4]} 44... Ke4 {[%clk 0:00:10.7]} 45. Nh4 {[%clk 0:00:09.1]}
45... e2 {[%clk 0:00:11.6]} 46. Ng2 {[%clk 0:00:09.6]} 46... e1=Q {[%clk
0:00:12.5]} 47. Nxe1 {[%clk 0:00:09.8]} 47... Ke3 {[%clk 0:00:13.4]} 48. c5
{[%clk 0:00:09.9]} 48... Kd2 {[%clk 0:00:13]} 49. Nf3+ {[%clk 0:00:10.2]} 49...
Ke2 {[%clk 0:00:13]} 50. Nxd4+ {[%clk 0:00:11.1]} 50... Kd3 {[%clk 0:00:12.9]}
51. c6 {[%clk 0:00:12]} 51... Kxd4 {[%clk 0:00:13.3]} 52. c7 {[%clk 0:00:12.9]}
52... Kc5 {[%clk 0:00:13.8]} 53. c8=Q+ {[%clk 0:00:13.8]} 53... Kb6 {[%clk
0:00:14.4]} 54. Qc4 {[%clk 0:00:14]} 1-0

[Event "*** Titled Tuesday Blitz"]
[Site "Chess.com"]
[Date "2021.03.16"]
[Round "3"]
[White "Myshakov_Fedor"]
[Black "Zhigalko_Sergei"]
[Result "0-1"]
[WhiteElo "2366"]
[BlackElo "2938"]
[TimeControl "180+1"]
[EndTime "10:29:02 PDT"]
[Termination "Zhigalko_Sergei won on time"]

1. c4 {[%clk 0:03:00.9]} 1... e5 {[%clk 0:02:59.8]} 2. Nc3 {[%clk 0:03:00.6]}
2... Nf6 {[%clk 0:02:59.4]} 3. Nf3 {[%clk 0:03:00.2]} 3... Nc6 {[%clk
0:02:59.5]} 4. g3 {[%clk 0:02:59.8]} 4... Bb4 {[%clk 0:02:59.3]} 5. Nd5 {[%clk
0:02:57.1]} 5... Ba5 {[%clk 0:02:59.1]} 6. b4 {[%clk 0:02:25.4]} 6... Nxd5
{[%clk 0:02:33.6]} 7. cxd5 {[%clk 0:02:05.3]} 7... Nxb4 {[%clk 0:02:32.2]} 8.
Nxe5 {[%clk 0:02:02.4]} 8... Qe7 {[%clk 0:02:21.6]} 9. Bb2 {[%clk 0:01:59]} 9...
O-O {[%clk 0:01:47.9]} 10. Bg2 {[%clk 0:01:48.7]} 10... d6 {[%clk 0:01:47.8]}
11. a3 {[%clk 0:01:42.7]} 11... dxe5 {[%clk 0:01:28.3]} 12. axb4 {[%clk
0:01:41.8]} 12... Bxb4 {[%clk 0:01:29.2]} 13. O-O {[%clk 0:01:19]} 13... a5
{[%clk 0:01:26.7]} 14. Qc2 {[%clk 0:01:13.7]} 14... Bd6 {[%clk 0:01:21.7]} 15.
e3 {[%clk 0:01:05.7]} 15... Re8 {[%clk 0:01:14.3]} 16. f4 {[%clk 0:01:00.9]}
16... e4 {[%clk 0:00:53.9]} 17. f5 {[%clk 0:00:50.8]} 17... f6 {[%clk
0:00:39.5]} 18. Ra4 {[%clk 0:00:47.5]} 18... Bb4 {[%clk 0:00:33]} 19. Rf4 {[%clk
0:00:42.3]} 19... Bd7 {[%clk 0:00:33]} 20. Ra1 {[%clk 0:00:28.8]} 20... Qd6
{[%clk 0:00:12.5]} 21. Rxe4 {[%clk 0:00:25.1]} 21... Rxe4 {[%clk 0:00:11.8]} 22.
Bxe4 {[%clk 0:00:24.7]} 22... Re8 {[%clk 0:00:10.9]} 23. d3 {[%clk 0:00:24]}
23... c6 {[%clk 0:00:05.5]} 24. Qc4 {[%clk 0:00:16]} 24... Kh8 {[%clk
0:00:04.9]} 25. dxc6 {[%clk 0:00:14.4]} 25... Bxc6 {[%clk 0:00:04.6]} 26. Bxc6
{[%clk 0:00:12.6]} 26... bxc6 {[%clk 0:00:05.5]} 27. Bd4 {[%clk 0:00:09.9]}
27... h6 {[%clk 0:00:05.5]} 28. e4 {[%clk 0:00:07.9]} 28... Rd8 {[%clk
0:00:04.9]} 29. Bb6 {[%clk 0:00:06.6]} 29... Qxd3 {[%clk 0:00:04.7]} 30. Qxd3
{[%clk 0:00:06.7]} 30... Rxd3 {[%clk 0:00:05.1]} 31. Bxa5 {[%clk 0:00:07.6]}
31... Bd6 {[%clk 0:00:02.9]} 32. Bb6 {[%clk 0:00:06.4]} 32... Be5 {[%clk
0:00:02.3]} 33. Ra8+ {[%clk 0:00:05.8]} 33... Kh7 {[%clk 0:00:02.6]} 34. Rc8
{[%clk 0:00:05.5]} 34... Rb3 {[%clk 0:00:02.5]} 35. Bc5 {[%clk 0:00:04.8]} 35...
Rc3 {[%clk 0:00:02.4]} 36. Bf8 {[%clk 0:00:03]} 36... Rc4 {[%clk 0:00:02.1]} 37.
Kg2 {[%clk 0:00:03.1]} 37... Rxe4 {[%clk 0:00:01.6]} 38. Rxc6 {[%clk 0:00:03.1]}
38... Re2+ {[%clk 0:00:01.7]} 39. Kf3 {[%clk 0:00:03.1]} 39... Rd2 {[%clk
0:00:02.3]} 40. Ra6 {[%clk 0:00:03.1]} 40... Rd3+ {[%clk 0:00:02.6]} 41. Ke4
{[%clk 0:00:03.1]} 41... Rd8 {[%clk 0:00:03.5]} 42. Be7 {[%clk 0:00:02.7]} 42...
Rd7 {[%clk 0:00:03.3]} 43. Bc5 {[%clk 0:00:02.8]} 43... Rc7 {[%clk 0:00:03.3]}
44. Be3 {[%clk 0:00:02.5]} 44... Rc4+ {[%clk 0:00:03.2]} 45. Kf3 {[%clk
0:00:02.6]} 45... Rc3 {[%clk 0:00:04.1]} 46. h3 {[%clk 0:00:02.7]} 46... Bd4
{[%clk 0:00:03.9]} 47. Re6 {[%clk 0:00:02.7]} 47... Kg8 {[%clk 0:00:04.2]} 48.
Re4 {[%clk 0:00:02.8]} 48... Be5 {[%clk 0:00:04]} 49. g4 {[%clk 0:00:02.8]}
49... Rc2 {[%clk 0:00:04]} 50. Rb4 {[%clk 0:00:02.5]} 50... Rh2 {[%clk
0:00:03.8]} 51. Rb7 {[%clk 0:00:01.2]} 51... Rxh3+ {[%clk 0:00:03.9]} 0-1